{"text_format":"1","workbook":"xlsx","n_sheets":1,"sheets":["InvertText"],"not_rendered":{"charts":0,"images":0,"macros":1,"external_links":0,"defined_names":0,"comments":0,"pivot_tables":0},"unopened":[],"bounds":{"document_bytes":16777216,"sheet_cells":100000,"rows_first":2000,"rows_last":500,"rows_between":2000,"halvings":0,"cell_chars":16384,"cell_head_chars":4096},"cells_cut":0,"cells_raw":0,"read":"whole","date_system":"1900"}

{"sheet":"InvertText","index":0,"n_rows":13,"n_cols":3,"rows_kept":13,"cut":false,"hidden":false,"merged":[[0,0,0,2]]}
["معکوس کردن داده های سلول در اکسل به دو روش استفاده از توابع اکسل و کد نویسی VBA"]
["متن ورودی","با استفاده از توابع اکسل با محدودیت 27 حرف","با استفاده از تابع کد نویسی شده در ویژوال بسیک بدون محدودیت"]
["مطالب کمیاب در حسابداری",{"$f":"IF(LEN(A3)<1,\"\",MID(A3,LEN(A3),1))&IF(LEN(A3)<2,\"\",MID(A3,LEN(A3)-1,1))&IF(LEN(A3)<3,\"\",MID(A3,LEN(A3)-2,1))&IF(LEN(A3)<4,\"\",MID(A3,LEN(A3)-3,1))&IF(LEN(A3)<5,\"\",MID(A3,LEN(A3)-4,1))&IF(LEN(A3)<6,\"\",MID(A3,LEN(A3)-5,1))&IF(LEN(A3)<7,\"\",MID(A3,LEN(A3)-6,1))&IF(LEN(A3)<8,\"\",MID(A3,LEN(A3)-7,1))&IF(LEN(A3)<9,\"\",MID(A3,LEN(A3)-8,1))&IF(LEN(A3)<10,\"\",MID(A3,LEN(A3)-9,1))&IF(LEN(A3)<11,\"\",MID(A3,LEN(A3)-10,1))&IF(LEN(A3)<12,\"\",MID(A3,LEN(A3)-11,1))&IF(LEN(A3)<13,\"\",MID(A3,LEN(A3)-12,1))&IF(LEN(A3)<14,\"\",MID(A3,LEN(A3)-13,1))&IF(LEN(A3)<15,\"\",MID(A3,LEN(A3)-14,1))&IF(LEN(A3)<16,\"\",MID(A3,LEN(A3)-15,1))&IF(LEN(A3)<17,\"\",MID(A3,LEN(A3)-16,1))&IF(LEN(A3)<18,\"\",MID(A3,LEN(A3)-17,1))&IF(LEN(A3)<19,\"\",MID(A3,LEN(A3)-18,1))&IF(LEN(A3)<20,\"\",MID(A3,LEN(A3)-19,1))&IF(LEN(A3)<21,\"\",MID(A3,LEN(A3)-20,1))&IF(LEN(A3)<22,\"\",MID(A3,LEN(A3)-21,1))&IF(LEN(A3)<23,\"\",MID(A3,LEN(A3)-22,1))&IF(LEN(A3)<24,\"\",MID(A3,LEN(A3)-23,1))&IF(LEN(A3)<25,\"\",MID(A3,LEN(A3)-24,1))&IF(LEN(A3)<26,\"\",MID(A3,LEN(A3)-25,1))&IF(LEN(A3)<27,\"\",MID(A3,LEN(A3)-26,1))","v":"یرادباسح رد بایمک بلاطم"},{"$f":"ReverseCell(A3)","v":"یرادباسح رد بایمک بلاطم"}]
["www.arshad-hesabdar.ir","ri.radbaseh-dahsra.www","ri.radbaseh-dahsra.www"]
["جدیدترین","نیرتدیدج","نیرتدیدج"]
["مطالب","بلاطم","بلاطم"]
["آموزشی","یشزومآ","یشزومآ"]
["حسابداری","یرادباسح","یرادباسح"]
["facebook.com/arshadhesabdar","radbasehdahsra/moc.koobecaf","radbasehdahsra/moc.koobecaf"]
["baniasadi67@gmail.com","moc.liamg@76idasainab","moc.liamg@76idasainab"]
[123456789,"987654321","987654321"]
[null,"",""]
[null,"",""]